bitfinex-derivatives/quotes_SOLF0:USTF0_20250328
["timestamp","ask_amount","ask_price","bid_price","bid_amount"]
[1743134553847,7.3166,136.72,136.7,13.4715669]
[1743134554143,0.04875792,136.73,136.7,13.4715669]
[1743134554543,7.36475792,136.73,136.7,13.4715669]
[1743134555849,7.3163,136.72,136.7,13.4715669]
[1743134557553,7.3168,136.71,136.7,13.4715669]
[1743134557743,7.3168,136.71,136.7,0.05125343]
[1743134558646,7.3178,136.69,136.68,30.34478603]
[1743134558847,34.4578,136.69,136.68,30.34478603]
[1743134560152,47.87811347,136.69,136.68,30.34478603]
[1743134561257,7.3184,136.68,136.67,0.04884439]
[1743134572463,27.14,136.69,136.67,0.04884439]
[1743134573468,7.3184,136.68,136.67,0.04884439]
[1743134586069,34.4584,136.68,136.67,0.04884439]
[1743134589776,27.14,136.68,136.67,0.04884439]
[1743134590275,34.4584,136.68,136.67,0.04884439]
[1743134591976,27.14,136.68,136.67,0.04884439]
[1743134592175,27.14,136.68,136.67,13.46915786]
[1743134592776,0.05058816,136.7,136.67,13.46915786]
[1743134593268,0.05058816,136.7,136.69,13.42031347]
[1743134593474,27.12,136.73,136.69,13.42031347]
[1743134593673,27.12,136.73,136.71,13.42031347]
[1743134593874,13.42031347,136.77,136.71,13.42031347]
[1743134594183,27.12,136.75,136.71,13.42031347]
[1743134594581,7.3155,136.74,136.71,13.42031347]
[1743134594881,7.36260331,136.74,136.72,0.05328322]
[1743134595479,0.04710331,136.74,136.72,0.05328322]
[1743134595876,0.04710331,136.74,136.72,7.36928322]
[1743134597178,0.04710331,136.74,136.73,20.73601347]
[1743134598978,13.42031347,136.8,136.75,7.3146]
[1743134599180,27.12,136.79,136.75,20.73491347]
[1743134599787,7.3131,136.78,136.75,13.42031347]
[1743134600176,7.36289794,136.78,136.75,13.46853971]
[1743134601191,7.3137,136.77,136.75,13.46853971]
[1743134601588,27.12,136.76,136.75,0.04822624]
[1743134601791,34.4341,136.76,136.75,0.04822624]
[1743134602184,47.85441347,136.76,136.75,0.04822624]
[1743134610391,34.4341,136.76,136.75,0.04822624]
[1743134611996,34.4141,136.76,136.75,0.04822624]
[1743134612795,0.04979794,136.78,136.75,13.46853971]
[1743134613402,0.04979794,136.78,136.75,20.78283971]
[1743134613796,0.04979794,136.78,136.75,13.46853971]
[1743134613997,0.04979794,136.78,136.76,7.314]
[1743134614902,0.04979794,136.78,136.75,20.78293971]
[1743134616599,7.36279794,136.78,136.75,20.78293971]
[1743134616803,0.04979794,136.78,136.75,13.46853971]
[1743134617307,7.3141,136.76,136.75,0.04822624]
[1743134620399,0.04979794,136.78,136.75,13.46853971]
[1743134620704,0.04979794,136.78,136.77,13.42031347]
[1743134621604,0.04979794,136.78,136.77,20.73381347]
[1743134621906,0.04979794,136.78,136.77,13.42031347]
[1743134622405,313.03851368,136.85,136.77,13.42031347]
[1743134622602,277.9349,136.89,136.84,13.42031347]
[1743134622603,3.9712,136.88,136.84,13.42031347]
[1743134622804,31.0512,136.88,136.84,13.42031347]
[1743134623002,7.3093,136.85,136.84,13.42031347]
[1743134627110,7.35786713,136.86,136.84,13.42031347]
[1743134627810,7.3093,136.85,136.84,13.42031347]
[1743134633511,0.04916713,136.86,136.84,13.42031347]
[1743134634714,7.3093,136.85,136.84,13.42031347]
[1743134635523,7.3098,136.84,136.83,13.47641602]
[1743134635722,27.10916713,136.86,136.83,13.47641602]
[1743134635923,0.04916713,136.86,136.85,13.42031347]
[1743134641024,7.35786713,136.86,136.85,13.42031347]
[1743134641625,0.04916713,136.86,136.85,13.42031347]
[1743134642129,7.35786713,136.86,136.85,13.42031347]
[1743134645725,313.03851368,136.85,136.76,30.34478603]
[1743134645931,13.42031347,136.8,136.76,30.34478603]
[1743134646129,27.04,136.82,136.78,13.42031347]
[1743134646326,3.9684,136.85,136.8,13.42031347]
[1743134646528,3.9684,136.85,136.82,13.42031347]
[1743134646529,1.9296,136.85,136.82,13.42031347]
[1743134646830,1.97872343,136.85,136.82,13.47227081]
[1743134647227,15.3990369,136.85,136.82,0.05195734]
[1743134647730,7.3103,136.83,136.82,0.05195734]
[1743134650631,7.3135,136.77,136.76,276.48031347]
[1743134650834,7.3135,136.77,136.76,263.06]
[1743134651133,27.04,136.8,136.75,13.42031347]
[1743134651834,0.05624819,136.79,136.77,13.42031347]
[1743134652035,7.3131,136.78,136.77,13.42031347]
[1743134652422,0.05624819,136.79,136.76,0.049198]
[1743134652627,7.3135,136.77,136.76,0.049198]
[1743134654530,0.05624819,136.79,136.76,0.049198]
[1743134654734,0.05624819,136.79,136.78,13.42031347]
[1743134664245,0.05624819,136.79,136.78,20.73331347]
[1743134665037,7.3105,136.83,136.79,7.312]
[1743134665239,7.3105,136.83,136.81,13.42031347]
[1743134666147,0.05340528,136.83,136.81,13.47239927]
[1743134667847,0.05340528,136.83,136.81,20.78339927]
[1743134669448,0.05340528,136.83,136.82,7.3109]
[1743134672455,0.05340528,136.83,136.81,20.78359927]
[1743134672756,0.05340528,136.83,136.81,13.47239927]
[1743134673361,7.36380528,136.83,136.81,13.47239927]
[1743134673865,0.05340528,136.83,136.81,13.47239927]
[1743134674768,7.3109,136.82,136.81,13.47239927]
[1743134674968,0.05340528,136.83,136.81,13.47239927]
[1743134675863,7.3109,136.82,136.81,13.47239927]
[1743134676264,7.36400528,136.83,136.81,13.47239927]
[1743134676464,0.05340528,136.83,136.81,13.47239927]
[1743134677765,7.36400528,136.83,136.81,13.47239927]
[1743134685965,7.3109,136.82,136.81,13.47239927]
[1743134686167,7.3109,136.82,136.81,0.0520858]
[1743134693274,7.36380528,136.83,136.81,20.78379927]
[1743134693469,7.36380528,136.83,136.81,13.47239927]
[1743134698380,0.05340528,136.83,136.81,13.47239927]
[1743134698782,7.3085,136.87,136.84,20.72981347]
[1743134699078,7.3085,136.87,136.86,13.42031347]
[1743134700583,34.37981397,136.88,136.86,13.42031347]
[1743134701079,27.07191397,136.88,136.86,13.42031347]
[1743134701786,7.3082,136.87,136.86,13.42031347]
[1743134704084,7.3087,136.86,136.85,0.05622555]
[1743134711086,7.3109,136.82,136.81,13.42031347]
[1743134711385,40.42031347,136.86,136.81,13.42031347]
[1743134711585,7.3102,136.84,136.81,13.42031347]
[1743134712181,7.3639687,136.84,136.81,13.47025094]
[1743134712886,7.3104,136.83,136.81,13.47025094]
[1743134714790,7.3109,136.82,136.81,13.47025094]
[1743134715087,7.3109,136.82,136.81,0.04993747]
[1743134730197,0.0537687,136.84,136.81,0.04993747]
[1743134730396,0.0537687,136.84,136.83,13.42031347]
[1743134731798,7.3637687,136.84,136.83,13.42031347]
[1743134731998,0.0537687,136.84,136.83,13.42031347]
[1743134733998,0.0537687,136.84,136.81,0.04993747]
[1743134734499,7.3109,136.82,136.81,0.04993747]
[1743134741411,7.3135,136.77,136.76,30.34478603]
[1743134742308,7.3135,136.77,136.76,80.73641579]
[1743134745108,7.3141,136.76,136.75,0.04883681]
[1743134745306,34.3141,136.76,136.75,0.04883681]
[1743134745709,47.73441347,136.76,136.75,3.681e-05]
[1743134746412,47.73441347,136.76,136.7,30.40353154]
[1743134746413,7.3168,136.71,136.7,30.40353154]
[1743134747515,7.3168,136.71,136.69,0.05601438]
[1743134748317,7.3173,136.7,136.69,0.05601438]
[1743134748718,13.42031347,136.71,136.66,111.13994733]
[1743134748915,13.42031347,136.68,136.66,111.13994733]
[1743134749213,26.98,136.67,136.66,111.13994733]
[1743134750412,40.40031347,136.67,136.66,111.13994733]
[1743134750615,26.98,136.67,136.66,111.13994733]
[1743134751513,26.98,136.67,136.65,0.04956986]
[1743134752013,34.2989,136.67,136.65,0.04956986]
[1743134752919,26.98,136.67,136.65,0.04956986]
[1743134753723,26.98,136.67,136.66,13.42031347]
[1743134755216,26.98,136.67,136.65,0.04956986]
[1743134755411,0.04932622,136.68,136.65,0.04956986]
[1743134755623,27.04932622,136.68,136.65,0.04956986]
[1743134755922,0.04932622,136.68,136.65,0.04956986]
[1743134756525,0.04932622,136.68,136.65,7.36946986]
[1743134758022,0.04932622,136.68,136.65,0.04956986]
[1743134758524,7.36802622,136.68,136.65,0.04956986]
[1743134759734,7.319,136.67,136.65,0.04956986]
[1743134760122,27.0,136.66,136.65,0.04956986]
[1743134761538,34.3194,136.66,136.65,0.04956986]
[1743134762531,7.3207,136.64,136.62,13.42031347]
[1743134762833,27.0,136.66,136.62,13.42031347]
[1743134763335,7.3201,136.65,136.62,13.42031347]
[1743134763836,7.37639426,136.65,136.62,13.47213542]
[1743134765636,7.3209,136.64,136.62,0.05182195]
[1743134767234,7.37649426,136.65,136.62,0.05182195]
[1743134767831,27.05629426,136.65,136.62,13.47213542]
[1743134768439,27.05629426,136.65,136.62,20.79333542]
[1743134769141,27.05629426,136.65,136.63,7.321]
[1743134769742,27.05629426,136.65,136.64,7.3205]
[1743134770341,3.8837,136.71,136.64,40.42031347]
[1743134770635,326.45882715,136.73,136.68,13.42031347]
[1743134770839,7.3166,136.72,136.68,13.42031347]
[1743134771245,313.03851368,136.73,136.67,27.0]
[1743134771438,313.03851368,136.73,136.69,13.42031347]
[1743134771649,0.05242531,136.71,136.69,13.47524943]
[1743134771939,0.05242531,136.71,136.7,7.3173]
[1743134772243,0.05242531,136.71,136.69,13.47524943]
[1743134773444,0.05242531,136.71,136.7,7.3173]
[1743134775847,0.05242531,136.71,136.69,13.47524943]
[1743134776348,7.36922531,136.71,136.69,13.47524943]
[1743134776541,0.05242531,136.71,136.69,13.47524943]
[1743134776945,0.05242531,136.71,136.69,20.79304943]
[1743134777441,0.05242531,136.71,136.69,13.47524943]
[1743134778249,0.05242531,136.71,136.7,7.3173]
[1743134779645,0.05242531,136.71,136.7,20.73761347]
[1743134781451,0.05242531,136.71,136.7,13.42031347]
[1743134782251,0.05242531,136.71,136.7,20.73761347]
[1743134783947,13.47273878,136.71,136.69,0.05493596]
[1743134784955,7.3173,136.7,136.69,0.05493596]
[1743134785348,20.78993878,136.71,136.69,0.05493596]
[1743134785555,7.36962531,136.71,136.69,0.05493596]
[1743134787855,7.3173,136.7,136.69,0.05493596]
[1743134791457,313.03851368,136.81,136.69,47.77524943]
[1743134791659,313.03851368,136.81,136.77,13.42031347]
[1743134792755,7.3125,136.79,136.78,0.0473837]
[1743134799364,7.3125,136.79,136.78,8.37e-05]
[1743134800864,28.31243242,136.79,136.78,8.37e-05]
[1743134802664,7.3125,136.79,136.78,8.37e-05]
[1743134803159,34.2725,136.79,136.78,8.37e-05]
[1743134803670,7.3125,136.79,136.78,8.37e-05]
[1743134815863,0.05034712,136.8,136.78,8.37e-05]
[1743134816167,339.99851368,136.86,136.79,20.99993242]
[1743134816365,339.99851368,136.86,136.8,7.3116]
[1743134816571,7.3101,136.84,136.8,7.3116]
[1743134816973,339.99851368,136.86,136.82,13.42788884]
[1743134817273,0.05247556,136.83,136.82,13.42788884]
[1743134818673,7.36277556,136.83,136.82,13.42788884]
[1743134818875,7.36277556,136.83,136.81,0.04688774]
[1743134819674,0.05247556,136.83,136.81,21.02935631]
[1743134820271,0.05247556,136.83,136.81,0.04688774]
[1743134820673,7.36307556,136.83,136.81,0.04688774]
[1743134820873,0.05247556,136.83,136.81,0.04688774]
[1743134821573,7.3109,136.82,136.81,0.04688774]
[1743134822782,0.05247556,136.83,136.81,7.35828774]
[1743134822980,0.05247556,136.83,136.81,0.04688774]
[1743134824376,7.36287556,136.83,136.81,0.04688774]
[1743134828980,0.05247556,136.83,136.81,0.04688774]
[1743134830186,7.36307556,136.83,136.81,0.04688774]
[1743134831290,7.3109,136.82,136.81,0.04688774]
[1743134832398,7.36297556,136.83,136.81,0.04688774]
[1743134839701,0.05247556,136.83,136.81,21.02935631]
[1743134839889,2.0518,136.9,136.81,21.02935631]
[1743134840093,26.94,136.89,136.84,20.98246857]
[1743134840293,7.3079,136.88,136.85,7.3092]
[1743134840897,7.3079,136.88,136.87,13.41736348]
[1743134841100,7.3595702,136.88,136.87,13.41736348]
[1743134841295,0.0516702,136.88,136.87,13.41736348]
[1743134842099,0.0516702,136.88,136.87,20.72556348]
[1743134843000,0.0516702,136.88,136.87,13.41736348]
[1743134845302,7.3593702,136.88,136.87,13.41736348]
[1743134847607,0.0516702,136.88,136.87,13.41736348]
[1743134848900,7.3593702,136.88,136.87,13.41736348]
[1743134849402,0.0516702,136.88,136.87,13.41736348]
[1743134856007,2.0808,136.94,136.87,13.41736348]
[1743134856310,29.0008,136.94,136.91,13.41736348]
[1743134856505,7.3055,136.92,136.91,13.41736348]
[1743134856707,2.0808,136.94,136.91,13.41736348]
[1743134857107,7.305,136.93,136.91,13.46378821]
[1743134858210,7.305,136.93,136.91,0.04642473]
[1743134860812,7.35369719,136.94,136.91,7.35232473]
[1743134862314,7.35369719,136.94,136.91,0.04642473]
[1743134863411,7.3051,136.93,136.91,0.04642473]
[1743134865111,7.35359719,136.94,136.91,7.35212473]
[1743134867814,7.305,136.93,136.91,0.04642473]
[1743134868714,7.3055,136.92,136.91,0.04642473]
[1743134871628,9.3999,136.93,136.91,0.04642473]
[1743134871816,26.94899719,136.94,136.91,0.04642473]
[1743134872427,7.3055,136.92,136.91,0.04642473]
[1743134885226,1.9249,136.93,136.85,57.30353154]
[1743134885725,1.9249,136.93,136.86,7.3087]
[1743134885927,1.9249,136.93,136.86,13.01205236]
[1743134886321,0.05177871,136.91,136.88,0.05343312]
[1743134886732,7.3076,136.89,136.88,0.05343312]
[1743134892132,7.3068,136.9,136.88,0.05343312]
[1743134893732,7.35807871,136.91,136.88,7.36103312]
[1743134895429,7.3066,136.9,136.88,0.05343312]
[1743134896233,7.3071,136.89,136.88,0.05343312]
[1743134904940,7.3069,136.9,136.88,0.05343312]
[1743134905737,7.3071,136.89,136.88,0.05343312]
[1743134906237,0.05177871,136.91,136.88,0.05343312]
[1743134908737,7.3071,136.89,136.88,0.05343312]
[1743134910844,7.3068,136.9,136.88,0.05343312]
[1743134912238,7.3071,136.89,136.88,0.05343312]
[1743134914848,0.05177871,136.91,136.88,26.93343312]
[1743134915342,0.05177871,136.91,136.9,7.3066]
[1743134917248,0.05177871,136.91,136.9,12.95477782]
[1743134919550,0.05177871,136.91,136.9,7.3066]
[1743134922251,7.3031,136.97,136.89,2.0792]
[1743134922652,313.03851368,137.0,136.89,2.0792]
[1743134922958,7.3026,136.98,136.94,7.3042]
[1743134923457,7.3026,136.98,136.93,26.88]
[1743134923458,0.05362322,136.97,136.95,7.35428646]
[1743134923665,0.05362322,136.97,136.95,0.05078646]
[1743134924160,0.05362322,136.97,136.96,7.3034]
[1743134924460,0.05362322,136.97,136.95,0.05078646]
[1743134931763,7.3034,136.96,136.95,0.05078646]
[1743134932764,7.3034,136.96,136.95,8.646e-05]
[1743134932963,14.6034,136.96,136.95,8.646e-05]
[1743134933165,16.578,136.96,136.95,8.646e-05]
[1743134936371,9.278,136.96,136.95,8.646e-05]
[1743134941371,7.3034,136.96,136.95,8.646e-05]
[1743134941563,313.0921369,136.97,136.95,8.646e-05]
[1743134942769,0.05362322,136.97,136.95,8.646e-05]
[1743134943173,0.05362322,136.97,136.95,7.30388646]
[1743134943473,0.05362322,136.97,136.95,8.646e-05]
[1743134945370,7.3034,136.96,136.95,8.646e-05]
[1743134946176,26.86,136.99,136.95,8.646e-05]
[1743134946570,7.3034,136.96,136.95,8.646e-05]
[1743134947571,34.1634,136.96,136.95,8.646e-05]
[1743134948376,7.3034,136.96,136.95,8.646e-05]
[1743134950277,7.35185196,136.97,136.95,8.646e-05]
[1743134951873,7.3034,136.96,136.95,8.646e-05]
[1743134952975,7.35205196,136.97,136.95,8.646e-05]
[1743134955480,7.3034,136.96,136.95,8.646e-05]
[1743134960086,0.04895196,136.97,136.95,8.646e-05]
[1743134960988,0.04895196,136.97,136.95,7.30358646]
[1743134961188,0.04895196,136.97,136.95,8.646e-05]
[1743134961485,7.2993,137.04,136.96,26.84]
[1743134961687,26.84,137.04,136.89,278.08134712]
[1743134961885,230.1029369,137.03,136.89,291.742]
[1743134962289,230.1029369,137.03,136.92,7.3051]
[1743134962591,0.0495463,136.99,136.96,0.04871475]
[1743134962782,7.3029,136.97,136.96,0.04871475]
[1743134964281,7.3025,136.98,136.96,0.04871475]
[1743134964888,7.3029,136.97,136.96,0.04871475]
[1743134965282,26.8895463,136.99,136.96,0.04871475]
[1743134966085,7.3029,136.97,136.96,0.04871475]
[1743134969892,7.3518463,136.99,136.96,0.04871475]
[1743134970092,0.0495463,136.99,136.96,0.04871475]
[1743134971598,7.3024,136.98,136.96,0.04871475]
[1743134972698,7.3029,136.97,136.96,0.04871475]
[1743134976596,7.3025,136.98,136.96,0.04871475]
[1743134977099,7.3027,136.98,136.96,0.04871475]
[1743134978503,7.3029,136.97,136.96,0.04871475]
[1743134979599,7.3028,136.98,136.96,0.04871475]
[1743134980290,34.1915463,136.99,136.96,0.04871475]
[1743134980500,0.0495463,136.99,136.96,0.04871475]
[1743134981002,0.0495463,136.99,136.96,11.21441475]
[1743134981597,0.0495463,136.99,136.97,7.3027]
[1743134982503,0.0495463,136.99,136.96,11.21461475]
[1743134983202,7.3514463,136.99,136.96,3.91141475]
[1743134984006,0.0495463,136.99,136.96,11.21461475]
[1743134984704,7.3029,136.97,136.96,0.04871475]
[1743134985100,34.1229,136.98,136.96,0.04871475]
[1743134985610,26.82,136.98,136.96,0.04871475]
[1743134986200,7.3029,136.97,136.96,0.04871475]
[1743134986404,0.0495463,136.99,136.96,0.04871475]
[1743134989013,0.0495463,136.99,136.96,7.35211475]
[1743134989213,7.3513463,136.99,136.96,0.04871475]
[1743134989506,0.0495463,136.99,136.96,0.04871475]
[1743134989711,0.0495463,136.99,136.97,26.82]
[1743134990012,226.1105369,137.03,136.98,3.9484]
[1743134990207,226.1105369,137.03,136.98,11.2504]
[1743134990807,7.3005,137.02,136.98,11.2504]
[1743134991109,7.35059285,137.02,136.99,0.04945333]
[1743134992613,0.05009285,137.02,136.99,0.04945333]
[1743134992911,26.87009285,137.02,136.99,0.04945333]
[1743134993303,7.3013,137.0,136.99,0.04945333]
[1743134998211,7.3013,137.0,136.99,5.333e-05]
[1743135005921,26.87009285,137.02,136.99,5.333e-05]
[1743135006221,0.05009285,137.02,136.99,7.30145333]
[1743135006424,0.05009285,137.02,136.99,5.333e-05]
[1743135006923,7.35029285,137.02,136.99,5.333e-05]
[1743135008119,0.05009285,137.02,136.99,7.30185333]
[1743135009322,0.05009285,137.02,136.99,5.333e-05]
[1743135010717,7.3013,137.0,136.99,5.333e-05]
[1743135015622,7.3009,137.01,136.99,5.333e-05]
[1743135015922,0.05009285,137.02,136.99,5.333e-05]
[1743135016125,7.3008,137.01,136.99,5.333e-05]
[1743135024836,0.05009285,137.02,136.99,5.333e-05]
[1743135025635,7.3013,137.0,136.99,5.333e-05]
[1743135026335,7.3009,137.01,136.99,5.333e-05]
[1743135026838,0.05009285,137.02,136.99,5.333e-05]
[1743135027137,7.35059285,137.02,136.99,5.333e-05]
[1743135028639,0.05009285,137.02,136.99,5.333e-05]
[1743135029832,7.3013,137.0,136.99,5.333e-05]
[1743135037756,34.1013,137.0,136.99,5.333e-05]
[1743135041652,7.3013,137.0,136.99,5.333e-05]
[1743135043246,0.05009285,137.02,136.99,26.80005333]
[1743135043652,0.05009285,137.02,136.99,28.71065333]
[1743135045760,0.05009285,137.02,136.99,36.01235333]
[1743135047161,0.05009285,137.02,137.0,7.3011]
[1743135047362,26.8,137.08,136.99,28.71065333]
[1743135047661,26.8,137.08,137.0,2.048]
[1743135048562,0.04836243,137.05,137.03,0.05579951]
[1743135053768,0.04836243,137.05,137.03,7.35539951]
[1743135053975,0.04836243,137.05,137.03,0.05579951]
[1743135055679,7.34706243,137.05,137.03,0.05579951]
[1743135055885,0.04836243,137.05,137.03,0.05579951]
[1743135056180,7.2991,137.04,137.03,0.05579951]
[1743135056481,26.8,137.04,136.97,30.40353154]
[1743135056680,28.7393,137.04,136.96,111.13994733]
[1743135056871,7.3016,137.0,136.96,118.44304733]
[1743135057466,0.05488636,136.99,136.97,0.04897788]
[1743135061369,34.0992,137.04,136.99,7.3015]
[1743135062576,0.05031315,137.03,137.0,0.05049704]
[1743135062876,7.35001315,137.03,137.0,0.05049704]
[1743135063577,7.3003,137.02,137.0,0.05049704]
[1743135066384,7.35021315,137.03,137.0,0.05049704]
[1743135067877,7.3004,137.02,137.0,0.05049704]
[1743135068779,34.1007,137.01,137.0,0.05049704]
[1743135069277,26.8,137.01,137.0,0.05049704]
[1743135069671,34.1007,137.01,137.0,0.05049704]
[1743135070473,1.27055989,137.1,137.0,34.15049704]
[1743135070675,226.1105369,137.09,137.01,289.56]
[1743135070870,226.1105369,137.09,137.01,262.76]
[1743135070871,1.9993,137.08,137.01,262.76]
[1743135071067,1.9993,137.08,136.97,26.8]
[1743135071678,1.9993,137.08,137.01,0.05462096]
[1743135071878,26.8,137.08,137.01,0.05462096]
[1743135072880,7.2977,137.07,137.01,7.35522096]
[1743135076081,7.2982,137.06,137.01,7.35522096]
[1743135077283,7.2977,137.07,137.02,7.3002]
[1743135078681,7.2982,137.06,137.02,7.3002]
[1743135080980,7.2982,137.06,137.01,7.35512096]
[1743135081181,7.2986,137.05,137.01,0.05462096]
[1743135082580,26.78,137.05,137.01,0.05462096]
[1743135083288,34.079,137.05,137.01,0.05462096]
[1743135083583,26.78,137.05,137.01,0.05462096]
[1743135084378,7.2992,137.04,137.01,0.05462096]
[1743135084681,26.78,137.05,137.01,0.05462096]
[1743135084881,7.2984,137.06,137.01,7.35532096]
[1743135087379,7.2989,137.05,137.01,0.05462096]
[1743135088688,7.2991,137.04,137.01,0.05462096]
[1743135089784,7.2997,137.03,137.01,0.05462096]
[1743135090094,26.78,137.07,137.01,0.05462096]
[1743135090391,7.299,137.05,137.01,0.05462096]
[1743135090787,26.78,137.07,137.01,0.05462096]
[1743135091486,7.2993,137.04,137.01,0.05462096]
[1743135091684,26.78,137.07,137.01,0.05462096]
[1743135092189,7.2997,137.03,137.01,0.05462096]
[1743135094093,7.2994,137.04,137.01,0.05462096]
[1743135094791,7.2997,137.03,137.01,0.05462096]
[1743135095486,7.3002,137.02,137.01,0.05462096]
[1743135095792,26.78,137.07,137.01,0.05462096]
[1743135095991,7.3,137.03,137.01,0.05462096]
[1743135096893,7.3002,137.02,137.01,0.05462096]
[1743135097193,26.78,137.05,137.01,0.05462096]
[1743135097686,7.2999,137.03,137.01,0.05462096]
[1743135099390,7.3002,137.02,137.01,0.05462096]
[1743135108697,7.2999,137.03,137.01,0.05462096]
[1743135108896,26.78,137.05,137.01,0.05462096]
[1743135111007,7.2992,137.04,137.01,0.05462096]
[1743135111207,26.78,137.06,137.01,0.05462096]
[1743135111705,7.2991,137.04,137.01,0.05462096]
[1743135113107,7.2988,137.05,137.01,0.05462096]
[1743135113312,7.2988,137.05,137.01,7.35522096]
[1743135113910,7.2978,137.07,137.01,0.05462096]
[1743135114109,26.78,137.08,137.01,0.05462096]
[1743135114510,34.0772,137.08,137.03,7.2992]
[1743135114914,7.2972,137.08,137.04,0.0489395]
[1743135115815,7.2972,137.08,137.04,7.3480395]
[1743135117209,7.2972,137.08,137.04,0.0489395]
[1743135117711,233.4072369,137.09,137.04,0.0489395]
[1743135119213,7.297,137.08,137.04,7.3478395]
[1743135119818,7.297,137.08,137.04,0.0489395]
[1743135121621,233.4071369,137.09,137.04,0.0489395]
[1743135122320,7.2966,137.09,137.04,7.3477395]
[1743135123814,7.2961,137.1,137.05,7.2986]
[1743135124023,7.2961,137.1,137.02,289.48]
[1743135124216,7.2961,137.1,137.06,0.05507655]
[1743135126120,2.085,137.14,137.06,7.35317655]
[1743135126323,26.78,137.16,137.06,0.05507655]
[1743135126521,26.78,137.16,137.04,26.78]
[1743135126723,26.78,137.16,137.1,0.05145772]
[1743135127332,7.2935,137.15,137.1,0.05145772]
[1743135127728,26.78,137.16,137.1,0.05145772]
[1743135128031,7.294,137.14,137.1,0.05145772]
[1743135129727,7.2934,137.15,137.1,7.34735772]
[1743135129923,226.1105369,137.18,137.1,289.43145772]
[1743135130129,226.1105369,137.18,137.11,3.9775]
[1743135130327,28.8167,137.24,137.11,3.9775]
[1743135130929,7.2896,137.22,137.16,0.05365881]
[1743135131236,122.14607298,137.28,137.16,0.05365881]
[1743135131438,28.8463,137.27,137.15,26.76]
[1743135131733,28.8463,137.27,137.21,0.04989061]
[1743135133135,7.2878,137.26,137.21,0.04989061]
[1743135134732,36.1334,137.27,137.21,0.04989061]
[1743135135536,7.2874,137.26,137.21,0.04989061]
[1743135136633,28.8463,137.27,137.21,0.04989061]
[1743135137738,7.2896,137.22,137.21,0.04989061]
[1743135138437,7.2911,137.2,137.18,262.6]
[1743135139438,7.33964191,137.2,137.18,262.64622412]
[1743135139938,7.2912,137.19,137.18,262.64622412]
[1743135140334,7.2912,137.19,137.18,0.04622412]
[1743135140534,0.04854191,137.2,137.12,289.18]
[1743135140835,26.74,137.21,137.12,289.18]
[1743135141732,0.05168235,137.18,137.15,0.05568172]
[1743135141937,7.2927,137.16,137.15,0.05568172]
[1743135143342,7.2924,137.17,137.15,0.05568172]
[1743135144732,7.2927,137.16,137.15,0.05568172]
[1743135145828,0.05168235,137.18,137.15,0.05568172]
[1743135148643,0.05168235,137.18,137.15,26.79568172]
[1743135149645,0.05168235,137.18,137.16,7.2927]
[1743135150940,0.05168235,137.18,137.17,7.2922]
[1743135151239,0.05168235,137.18,137.15,26.79568172]
[1743135151445,0.05168235,137.18,137.16,7.2925]
[1743135152643,2.0629,137.25,137.15,26.79568172]
[1743135152846,2.0629,137.25,137.15,26.74]
[1743135153749,7.2899,137.22,137.17,7.2922]
[1743135154048,0.04308368,137.21,137.19,0.046633]
[1743135156450,0.04308368,137.21,137.19,7.337533]
[1743135156841,0.04308368,137.21,137.19,0.046633]
[1743135160155,7.33318368,137.21,137.19,0.046633]
[1743135160855,0.04308368,137.21,137.19,0.046633]
[1743135162255,7.33318368,137.21,137.19,0.046633]
[1743135162853,0.04308368,137.21,137.19,0.046633]
[1743135164758,0.04308368,137.21,137.2,7.2906]
[1743135166559,26.74,137.28,137.19,0.046633]
[1743135166749,26.74,137.28,137.18,57.14353154]
[1743135167261,7.2884,137.25,137.2,7.2903]
[1743135167662,7.2884,137.25,137.21,0.05007725]
[1743135168063,7.289,137.24,137.21,0.05007725]
[1743135168259,26.74,137.24,137.21,0.05007725]
[1743135168453,26.74,137.24,137.18,30.40353154]
[1743135168660,7.2912,137.19,137.18,30.40353154]
[1743135168852,34.0312,137.19,137.18,30.40353154]
[1743135169458,7.2917,137.18,137.17,80.73641579]
[1743135169655,7.2917,137.18,137.17,80.7826409]
[1743135171060,26.74,137.19,137.17,0.04622511]
[1743135171665,34.0313,137.19,137.17,0.04622511]
[1743135172057,26.74,137.19,137.17,0.04622511]
[1743135172464,34.0313,137.19,137.17,0.04622511]
[1743135174966,0.05007725,137.2,137.17,0.04622511]
[1743135177875,0.05007725,137.2,137.17,7.33802511]
[1743135178279,0.05007725,137.2,137.17,0.04622511]
[1743135179075,0.05007725,137.2,137.17,7.33842511]
[1743135180370,0.05007725,137.2,137.18,7.2916]